Workbook

Sheet Wind
A1: Wind Loads on Chimney/Stack
A3: V = | B3: 120 | C3: mph | D3: =+V*0.447 -> 53.64 | E3: m/s
A4: Exp = | B4: C
A5: α = | B5: 9.5
A6: zg = | B6: 900 | C6: ft | D6: =+B6*0.3048 -> 274.32 | E6: m
A8: h = | B8: 100 | C8: ft | D8: =+B8*0.3048 -> 30.48 | E8: m
A9: G = | B9: 0.991 | C9: (Flexible Gust Factor Calcualted in Mathcad Sheet per Para 26.11)
A10: Kzt = | B10: 1
A11: Kd = | B11: 1
A12: Ke = | B12: 1
A15: Elevation | C15: d | E15: Kz | F15: qz | H15: h/d | I15: D*(qz)^0.5 | K15: Cf | L15: Af | N15: F
A16: (ft) | B16: (m) | C16: (ft) | D16: (m) | F16: (psf) | G16: (Pa) | I16: Imperial | J16: Metric | K16: Fig 29.4-1 | L16: ft^2 | M16: m^2 | N16: lb | O16: N
A17: 100 | B17: =+A17*0.3048 -> 30.48 | C17: 3 | D17: =+C17*0.3048 -> 0.9144 | E17: =2.01*(A17/zg)^(2/Alpha) -> 1.266 | F17: =0.00256*E17*Kzt*Kd*Ke*V^2 -> 46.66 | G17: =0.613*E17*Kzt*Kd*Ke*$D$3^2 -> 2232.24 | H17: =+h/C17 -> 33.33 | I17: =+C17*F17^0.5 -> 20.49 | J17: =D17*G17^0.5 -> 43.20 | K17: =IF(H17>25,0.7,IF(H17<=1,0.5,IF(AND(H17>1,H17<=7), Interpolate(0.5,0.6,1,H17,7),Interpolate(0.6,0.7,7,H17,25)))) -> 0.700 | L17: =+C17*(A17-A18) -> 30.00 | M17: =+D17*(B17-B18) -> 2.79 | N17: =+F17*G*K17*L17 -> 971.0 | O17: =G17*G*K17*M17 -> 4315.8
A18: =+A17-10 -> 90 | B18: =+A18*0.3048 -> 27.43 | C18: 3 | D18: =+C18*0.3048 -> 0.9144 | E18: =2.01*(A18/zg)^(2/Alpha) -> 1.238 | F18: =0.00256*E18*Kzt*Kd*Ke*V^2 -> 45.63 | G18: =0.613*E18*Kzt*Kd*Ke*$D$3^2 -> 2183.27 | H18: =+h/C18 -> 33.33 | I18: =+C18*F18^0.5 -> 20.27 | J18: =D18*G18^0.5 -> 42.73 | K18: =IF(H18>25,0.7,IF(H18<=1,0.5,IF(AND(H18>1,H18<=7), Interpolate(0.5,0.6,1,H18,7),Interpolate(0.6,0.7,7,H18,25)))) -> 0.700 | L18: =+C18*(A18-A19) -> 30.00 | M18: =+D18*(B18-B19) -> 2.79 | N18: =+F18*G*K18*L18 -> 949.7 | O18: =G18*G*K18*M18 -> 4221.1
A19: =+A18-10 -> 80 | B19: 24.38 | C19: 3 | D19: 0.9144 | E19: =2.01*(A19/zg)^(2/Alpha) -> 1.208 | F19: =0.00256*E19*Kzt*Kd*Ke*V^2 -> 44.51 | G19: =0.613*E19*Kzt*Kd*Ke*$D$3^2 -> 2129.80 | H19: =+h/C19 -> 33.33 | I19: 20.02 | J19: 42.20 | K19: =IF(H19>25,0.7,IF(H19<=1,0.5,IF(AND(H19>1,H19<=7), Interpolate(0.5,0.6,1,H19,7),Interpolate(0.6,0.7,7,H19,25)))) -> 0.700 | L19: 30.00 | M19: 2.79 | N19: =+F19*G*K19*L19 -> 926.4 | O19: =G19*G*K19*M19 -> 4117.8
A20: 70 | B20: 21.34 | C20: 3 | D20: 0.9144 | E20: =2.01*(A20/zg)^(2/Alpha) -> 1.174 | F20: =0.00256*E20*Kzt*Kd*Ke*V^2 -> 43.28 | G20: =0.613*E20*Kzt*Kd*Ke*$D$3^2 -> 2070.76 | H20: =+h/C20 -> 33.33 | I20: 19.74 | J20: 41.61 | K20: =IF(H20>25,0.7,IF(H20<=1,0.5,IF(AND(H20>1,H20<=7), Interpolate(0.5,0.6,1,H20,7),Interpolate(0.6,0.7,7,H20,25)))) -> 0.700 | L20: 30.00 | M20: 2.79 | N20: =+F20*G*K20*L20 -> 900.7 | O20: =G20*G*K20*M20 -> 4003.6
A21: 60 | B21: 18.29 | C21: 3 | D21: 0.9144 | E21: =2.01*(A21/zg)^(2/Alpha) -> 1.137 | F21: =0.00256*E21*Kzt*Kd*Ke*V^2 -> 41.90 | G21: =0.613*E21*Kzt*Kd*Ke*$D$3^2 -> 2004.64 | H21: =+h/C21 -> 33.33 | I21: 19.42 | J21: 40.94 | K21: =IF(H21>25,0.7,IF(H21<=1,0.5,IF(AND(H21>1,H21<=7), Interpolate(0.5,0.6,1,H21,7),Interpolate(0.6,0.7,7,H21,25)))) -> 0.700 | L21: 15.00 | M21: 1.39 | N21: =+F21*G*K21*L21 -> 436.0 | O21: =G21*G*K21*M21 -> 1937.9
A22: 55 | B22: 16.76 | C22: 4.5 | D22: 1.3716 | E22: =2.01*(A22/zg)^(2/Alpha) -> 1.116 | F22: =0.00256*E22*Kzt*Kd*Ke*V^2 -> 41.14 | G22: =0.613*E22*Kzt*Kd*Ke*$D$3^2 -> 1968.25 | H22: =+h/C22 -> 22.22 | I22: 28.86 | J22: 60.85 | K22: =IF(H22>25,0.7,IF(H22<=1,0.5,IF(AND(H22>1,H22<=7), Interpolate(0.5,0.6,1,H22,7),Interpolate(0.6,0.7,7,H22,25)))) -> 0.685 | L22: 22.50 | M22: 2.09 | N22: =+F22*G*K22*L22 -> 627.9 | O22: =G22*G*K22*M22 -> 2791.1
A23: 50 | B23: 15.24 | C23: 5 | D23: 1.524 | E23: =2.01*(A23/zg)^(2/Alpha) -> 1.094 | F23: =0.00256*E23*Kzt*Kd*Ke*V^2 -> 40.32 | G23: =0.613*E23*Kzt*Kd*Ke*$D$3^2 -> 1929.15 | H23: =+h/C23 -> 20.00 | I23: 31.75 | J23: 66.94 | K23: =IF(H23>25,0.7,IF(H23<=1,0.5,IF(AND(H23>1,H23<=7), Interpolate(0.5,0.6,1,H23,7),Interpolate(0.6,0.7,7,H23,25)))) -> 0.672 | L23: 50.00 | M23: 4.65 | N23: =+F23*G*K23*L23 -> 1343.0 | O23: =G23*G*K23*M23 -> 5969.7
A24: 40 | B24: 12.19 | C24: 5 | D24: 1.524 | E24: =2.01*(A24/zg)^(2/Alpha) -> 1.044 | F24: =0.00256*E24*Kzt*Kd*Ke*V^2 -> 38.47 | G24: =0.613*E24*Kzt*Kd*Ke*$D$3^2 -> 1840.62 | H24: =+h/C24 -> 20.00 | I24: 31.01 | J24: 65.38 | K24: =IF(H24>25,0.7,IF(H24<=1,0.5,IF(AND(H24>1,H24<=7), Interpolate(0.5,0.6,1,H24,7),Interpolate(0.6,0.7,7,H24,25)))) -> 0.672 | L24: 50.00 | M24: 4.65 | N24: =+F24*G*K24*L24 -> 1281.4 | O24: =G24*G*K24*M24 -> 5695.7
A25: 30 | B25: 9.14 | C25: 5 | D25: 1.524 | E25: =2.01*(A25/zg)^(2/Alpha) -> 0.982 | F25: =0.00256*E25*Kzt*Kd*Ke*V^2 -> 36.21 | G25: =0.613*E25*Kzt*Kd*Ke*$D$3^2 -> 1732.45 | H25: =+h/C25 -> 20.00 | I25: 30.09 | J25: 63.43 | K25: =IF(H25>25,0.7,IF(H25<=1,0.5,IF(AND(H25>1,H25<=7), Interpolate(0.5,0.6,1,H25,7),Interpolate(0.6,0.7,7,H25,25)))) -> 0.672 | L25: 50.00 | M25: 4.65 | N25: =+F25*G*K25*L25 -> 1206.1 | O25: =G25*G*K25*M25 -> 5361.0
A26: 20 | B26: 6.10 | C26: 5 | D26: 1.524 | E26: =2.01*(A26/zg)^(2/Alpha) -> 0.902 | F26: =0.00256*E26*Kzt*Kd*Ke*V^2 -> 33.25 | G26: =0.613*E26*Kzt*Kd*Ke*$D$3^2 -> 1590.70 | H26: =+h/C26 -> 20.00 | I26: 28.83 | J26: 60.78 | K26: =IF(H26>25,0.7,IF(H26<=1,0.5,IF(AND(H26>1,H26<=7), Interpolate(0.5,0.6,1,H26,7),Interpolate(0.6,0.7,7,H26,25)))) -> 0.672 | L26: 25.00 | M26: 2.32 | N26: =+F26*G*K26*L26 -> 553.7 | O26: =G26*G*K26*M26 -> 2461.2
A27: 15 | B27: 4.57 | C27: 5 | D27: 1.524 | E27: =2.01*(A27/zg)^(2/Alpha) -> 0.849 | F27: =0.00256*E27*Kzt*Kd*Ke*V^2 -> 31.29 | G27: =0.613*E27*Kzt*Kd*Ke*$D$3^2 -> 1497.22 | H27: =+h/C27 -> 20.00 | I27: 27.97 | J27: 58.97 | K27: =IF(H27>25,0.7,IF(H27<=1,0.5,IF(AND(H27>1,H27<=7), Interpolate(0.5,0.6,1,H27,7),Interpolate(0.6,0.7,7,H27,25)))) -> 0.672 | L27: 75.00 | M27: 6.97 | N27: =+F27*G*K27*L27 -> 1563.5 | O27: =G27*G*K27*M27 -> 6949.7
N28: =SUM(N17:N27) -> 10759.4 | O28: =SUM(O17:O27) -> 47824.7
